fUSD/lending_fUSD_20260630
["ID","MTS","AMOUNT","RATE_DAILY","PERIOD"]
[426696359,1782749439000,-1428.01,0.00014999,2]
[426696300,1782749439000,-600.0,0.00014622,2]
[426696299,1782749439000,-600.0,0.00014622,2]
[426696301,1782749439000,-600.0,0.00014622,2]
[426696310,1782749439000,-150.0,0.00014687,2]
[426696305,1782749439000,-500.80717316,0.00014644,2]
[426696312,1782749439000,-150.0,0.0001471,2]
[426696302,1782749439000,-600.0,0.00014622,2]
[426696303,1782749439000,-700.59723112,0.00014622,2]
[426696304,1782749439000,-150.0,0.00014631,2]
[426696308,1782749439000,-445.54265778,0.00014663,2]
[426696306,1782749439000,-501.1574846,0.00014644,2]
[426696327,1782749439000,-152.49399696,0.000149,2]
[426696309,1782749439000,-150.0,0.00014671,2]
[426696311,1782749439000,-3372.30147842,0.00014703,2]
[426696314,1782749439000,-150.0,0.00014737,2]
[426696324,1782749439000,-150.0,0.00014861,2]
[426696313,1782749439000,-279.79824217,0.00014728,2]
[426696317,1782749439000,-11563.85677324,0.00014746,2]
[426696319,1782749439000,-150.0,0.00014772,2]
[426696315,1782749439000,-150.0,0.00014737,2]
[426696316,1782749439000,-26823.40791933,0.00014745,2]
[426696318,1782749439000,-150.0,0.0001475,2]
[426696320,1782749439000,-150.0,0.00014789,2]
[426696321,1782749439000,-150.0,0.0001482,2]
[426696323,1782749439000,-150.0,0.00014836,2]
[426696307,1782749439000,-150.0,0.00014653,2]
[426696355,1782749439000,-1428.01,0.00014999,2]
[426696322,1782749439000,-150.0,0.00014829,2]
[426696358,1782749439000,-1428.01,0.00014999,2]
[426696386,1782749439000,-500.0,0.00015,2]
[426696387,1782749439000,-500.0,0.00015,2]
[426696384,1782749439000,-500.0,0.00015,2]
[426696389,1782749439000,-500.0,0.00015,2]
[426696390,1782749439000,-500.0,0.00015,2]
[426696388,1782749439000,-500.0,0.00015,2]
[426696392,1782749439000,-500.0,0.00015,2]
[426696391,1782749439000,-500.0,0.00015,2]
[426696399,1782749439000,-500.0,0.00015,2]
[426696398,1782749439000,-500.0,0.00015,2]
[426696397,1782749439000,-500.0,0.00015,2]
[426696402,1782749439000,-500.0,0.00015,2]
[426696414,1782749439000,-500.0,0.00015,2]
[426696400,1782749439000,-500.0,0.00015,2]
[426696407,1782749439000,-500.0,0.00015,2]
[426696403,1782749439000,-500.0,0.00015,2]
[426696401,1782749439000,-500.0,0.00015,2]
[426696406,1782749439000,-500.0,0.00015,2]
[426696405,1782749439000,-500.0,0.00015,2]
[426696409,1782749439000,-500.0,0.00015,2]
[426696412,1782749439000,-500.0,0.00015,2]
[426696410,1782749439000,-500.0,0.00015,2]
[426696411,1782749439000,-500.0,0.00015,2]
[426696408,1782749439000,-500.0,0.00015,2]
[426696413,1782749439000,-500.0,0.00015,2]
[426696356,1782749439000,-1428.01,0.00014999,2]
[426696404,1782749439000,-500.0,0.00015,2]
[426696394,1782749439000,-500.0,0.00015,2]
[426696415,1782749439000,-500.0,0.00015,2]
[426696393,1782749439000,-500.0,0.00015,2]
[426696357,1782749439000,-1428.01,0.00014999,2]
[426696361,1782749439000,-1428.01,0.00014999,2]
[426696369,1782749439000,-666.0,0.00014999,2]
[426696362,1782749439000,-1428.01,0.00014999,2]
[426696370,1782749439000,-300.0,0.00014999,2]
[426696371,1782749439000,-300.0,0.00014999,2]
[426696360,1782749439000,-1428.01,0.00014999,2]
[426696395,1782749439000,-500.0,0.00015,2]
[426696364,1782749439000,-1428.01,0.00014999,2]
[426696365,1782749439000,-1428.02400881,0.00014999,2]
[426696366,1782749439000,-331.37629794,0.00014999,2]
[426696367,1782749439000,-300.0,0.00014999,2]
[426696368,1782749439000,-300.0,0.00014999,2]
[426696363,1782749439000,-1428.01,0.00014999,2]
[426696372,1782749439000,-8765237.65522036,0.00015,2]
[426696396,1782749439000,-500.0,0.00015,2]
[426696374,1782749439000,-151.301244,0.00015,2]
[426696385,1782749439000,-500.0,0.00015,2]
[426696380,1782749439000,-500.0,0.00015,2]
[426696373,1782749439000,-10938696.60541606,0.00015,2]
[426696382,1782749439000,-500.0,0.00015,2]
[426696383,1782749439000,-500.0,0.00015,2]
[426696375,1782749439000,-151.0,0.00015,2]
[426696381,1782749439000,-500.0,0.00015,2]
[426696378,1782749439000,-500.0,0.00015,2]
[426696377,1782749439000,-151.0,0.00015,2]
[426696376,1782749439000,-151.0,0.00015,2]
[426696379,1782749439000,-500.0,0.00015,2]
[426696451,1782749440000,-500.0,0.00016438,2]
[426696463,1782749440000,-151.0,0.00016438,2]
[426696456,1782749440000,-500.0,0.00016438,2]
[426696450,1782749440000,-500.0,0.00016438,2]
[426696449,1782749440000,-281.16764563,0.00016438,2]
[426696444,1782749440000,-500.0,0.00016438,2]
[426696447,1782749440000,-500.0,0.00016438,2]
[426696453,1782749440000,-500.0,0.00016438,2]
[426696448,1782749440000,-500.0,0.00016438,2]
[426696454,1782749440000,-500.0,0.00016438,2]
[426696446,1782749440000,-500.0,0.00016438,2]
[426696464,1782749440000,-218.23034,0.00016438,2]
[426696470,1782749440000,-160.65215136,0.000165,2]
[426696455,1782749440000,-500.0,0.00016438,2]
[426696466,1782749440000,-151.0,0.00016438,2]
[426696460,1782749440000,-500.0,0.00016438,2]
[426696465,1782749440000,-151.0,0.00016438,2]
[426696467,1782749440000,-151.0,0.00016438,2]
[426696459,1782749440000,-500.0,0.00016438,2]
[426696462,1782749440000,-151.0,0.00016438,2]
[426696458,1782749440000,-500.0,0.00016438,2]
[426696461,1782749440000,-151.0,0.00016438,2]
[426696468,1782749440000,-151.0,0.00016438,2]
[426696473,1782749440000,-500.0,0.00017069,2]
[426696452,1782749440000,-500.0,0.00016438,2]
[426696457,1782749440000,-500.0,0.00016438,2]
[426696443,1782749440000,-500.0,0.00016438,2]
[426696424,1782749440000,-151.0,0.00015,2]
[426696439,1782749440000,-500.0,0.00016438,2]
[426696469,1782749440000,-151.0,0.00016438,2]
[426696418,1782749440000,-500.0,0.00015,2]
[426696417,1782749440000,-500.0,0.00015,2]
[426696416,1782749440000,-500.0,0.00015,2]
[426696420,1782749440000,-500.0,0.00015,2]
[426696428,1782749440000,-151.0,0.00015,2]
[426696427,1782749440000,-151.0,0.00015,2]
[426696429,1782749440000,-151.0,0.00015,2]
[426696423,1782749440000,-151.0,0.00015,2]
[426696421,1782749440000,-499.655273,0.00015,2]
[426696422,1782749440000,-151.0,0.00015,2]
[426696426,1782749440000,-151.0,0.00015,2]
[426696445,1782749440000,-500.0,0.00016438,2]
[426696425,1782749440000,-151.0,0.00015,2]
[426696430,1782749440000,-154.52,0.00015066,2]
[426696432,1782749440000,-324.91,0.000153,2]
[426696431,1782749440000,-288.06,0.00015068,2]
[426696441,1782749440000,-500.0,0.00016438,2]
[426696442,1782749440000,-500.0,0.00016438,2]
[426696438,1782749440000,-582.93,0.00016438,2]
[426696435,1782749440000,-157.67,0.00015716,2]
[426696433,1782749440000,-279.79824217,0.00015306,2]
[426696440,1782749440000,-500.0,0.00016438,2]
[426696436,1782749440000,-433.0,0.00015745,2]
[426696434,1782749440000,-579.53,0.00015605,2]
[426696437,1782749440000,-982.72,0.00016054,2]
[426696419,1782749440000,-500.0,0.00015,2]
[426696471,1782749440000,-502.0,0.00017,2]
[426696474,1782749440000,-500.0,0.00017069,2]
[426696531,1782749440000,-150.0,0.00020547,2]
[426696507,1782749440000,-154.0,0.0002,2]
[426696509,1782749440000,-2000.0,0.0002,7]
[426696511,1782749440000,-1576.76,0.00020145,2]
[426696513,1782749440000,-7241.04,0.00020145,2]
[426696515,1782749440000,-4828.71,0.00020145,2]
[426696517,1782749440000,-150.99,0.00020145,2]
[426696521,1782749440000,-9999.99,0.00020145,2]
[426696523,1782749440000,-1808.42,0.00020145,2]
[426696525,1782749440000,-9999.99,0.00020145,2]
[426696527,1782749440000,-268.14,0.00020145,2]
[426696540,1782749440000,-666.0,0.0002095,2]
[426696535,1782749440000,-273.33010035,0.00020776,2]
[426696504,1782749440000,-157.0,0.0002,2]
[426696541,1782749440000,-300.0,0.0002095,2]
[426696539,1782749440000,-300.0,0.0002095,2]
[426696537,1782749440000,-300.0,0.0002095,2]
[426696529,1782749440000,-505.95,0.00020145,2]
[426696542,1782749440000,-300.0,0.0002095,2]
[426696544,1782749440000,-172.87048996,0.00021,2]
[426696546,1782749440000,-320.0,0.00021,2]
[426696550,1782749440000,-157.0,0.00021,2]
[426696549,1782749440000,-611.0,0.00021,2]
[426696552,1782749440000,-154.0,0.00021,2]
[426696548,1782749440000,-225.0,0.00021,2]
[426696472,1782749440000,-736.0,0.00017047,2]
[426696551,1782749440000,-588.0,0.00021,2]
[426696533,1782749440000,-502.0,0.00020761,5]
[426696505,1782749440000,-588.0,0.0002,2]
[426696519,1782749440000,-299.99,0.00020145,7]
[426696501,1782749440000,-159.0,0.0002,2]
[426696478,1782749440000,-500.0,0.00017069,2]
[426696477,1782749440000,-500.0,0.00017069,2]
[426696475,1782749440000,-500.0,0.00017069,2]
[426696476,1782749440000,-500.0,0.00017069,2]
[426696480,1782749440000,-250.0,0.00017286,2]
[426696486,1782749440000,-437.37,0.000185,2]
[426696488,1782749440000,-170.67,0.00018859,2]
[426696487,1782749440000,-157.67,0.00018859,2]
[426696485,1782749440000,-1693.81,0.00018104,2]
[426696503,1782749440000,-155.74802906,0.0002,2]
[426696483,1782749440000,-502.0,0.0001794,2]
[426696484,1782749440000,-311.36520121,0.00018,2]
[426696479,1782749440000,-273.33010035,0.00017123,2]
[426696481,1782749440000,-157.67,0.00017288,2]
[426696489,1782749440000,-502.0,0.00018881,3]
[426696490,1782749440000,-3032.4389352,0.00019128,2]
[426696497,1782749440000,-502.0,0.00019821,4]
[426696499,1782749440000,-320.0,0.0002,2]
[426696482,1782749440000,-982.72,0.00017659,2]
[426696502,1782749440000,-611.0,0.0002,2]
[426696498,1782749440000,-159.0,0.0002,2]
[426696500,1782749440000,-225.0,0.0002,2]
[426696496,1782749440000,-386.35,0.00019676,2]
[426696493,1782749440000,-982.72,0.00019264,2]
[426696495,1782749440000,-500.0,0.00019342,2]
[426696494,1782749440000,-500.0,0.00019324,2]
[426696492,1782749440000,-151.0,0.00019178,2]
[426696491,1782749440000,-151.0,0.00019178,2]
[426696587,1782749441000,-955.16,0.00022466,2]
[426696595,1782749441000,-150.0,0.00023014,2]
[426696596,1782749441000,-437.37,0.000231,7]
[426696594,1782749441000,-588.0,0.00023,2]
[426696591,1782749441000,-320.0,0.00023,2]
[426696586,1782749441000,-633.49,0.00022466,2]
[426696590,1782749441000,-1398.58,0.00022801,2]
[426696588,1782749441000,-502.0,0.00022642,7]
[426696592,1782749441000,-225.0,0.00023,2]
[426696599,1782749441000,-502.0,0.00023582,8]
[426696593,1782749441000,-611.0,0.00023,2]
[426696589,1782749441000,-503.0,0.00022658,2]
[426696601,1782749441000,-166.02468513,0.00023852,2]
[426696606,1782749441000,-156.70733824,0.00023886,2]
[426696602,1782749441000,-182.1664155,0.00023852,2]
[426696598,1782749441000,-2000.0,0.00023333,7]
[426696597,1782749441000,-168.11328063,0.00023288,2]
[426696603,1782749441000,-194.22230887,0.00023853,2]
[426696605,1782749441000,-151.8369927,0.00023886,2]
[426696617,1782749441000,-185.88328315,0.00023892,2]
[426696615,1782749441000,-151.58339238,0.00023892,2]
[426696604,1782749441000,-180.45781124,0.00023886,2]
[426696616,1782749441000,-154.41441024,0.00023892,2]
[426696612,1782749441000,-162.07285489,0.00023886,2]
[426696613,1782749441000,-162.51676248,0.00023886,2]
[426696608,1782749441000,-184.14346415,0.00023886,2]
[426696584,1782749441000,-1398.57,0.00022116,2]
[426696600,1782749441000,-580.81056742,0.00023634,7]
[426696585,1782749441000,-500.0,0.00022192,2]
[426696554,1782749441000,-300.0,0.00021272,2]
[426696583,1782749441000,-155.45489804,0.00022,2]
[426696553,1782749441000,-300.0,0.00021272,2]
[426696557,1782749441000,-13798.21,0.00021273,2]
[426696556,1782749441000,-460.04,0.00021273,2]
[426696559,1782749441000,-178.5,0.00021295,5]
[426696569,1782749441000,-502.0,0.00021701,6]
[426696561,1782749441000,-178.5,0.00021295,5]
[426696558,1782749441000,-178.5,0.00021295,5]
[426696560,1782749441000,-178.5,0.00021295,5]
[426696562,1782749441000,-178.5,0.00021295,5]
[426696563,1782749441000,-178.5,0.00021295,5]
[426696565,1782749441000,-178.5,0.00021295,5]
[426696567,1782749441000,-400.87807257,0.00021356,2]
[426696566,1782749441000,-178.5,0.00021295,5]
[426696564,1782749441000,-178.5,0.00021295,5]
[426696568,1782749441000,-1398.57,0.00021431,2]
[426696570,1782749441000,-456.10089585,0.00021917,2]
[426696572,1782749441000,-150.0,0.00021918,2]
[426696571,1782749441000,-5000.0,0.00021918,2]
[426696573,1782749441000,-151.0,0.00021997,2]
[426696579,1782749441000,-225.0,0.00022,2]
[426696581,1782749441000,-165.94377835,0.00022,2]
[426696574,1782749441000,-300.0,0.00021999,2]
[426696580,1782749441000,-611.0,0.00022,2]
[426696576,1782749441000,-300.0,0.00021999,2]
[426696578,1782749441000,-320.0,0.00022,2]
[426696575,1782749441000,-300.0,0.00021999,2]
[426696577,1782749441000,-288757.77543616,0.00022,4]
[426696582,1782749441000,-588.0,0.00022,2]
[426696610,1782749441000,-161.70054718,0.00023886,2]
[426696555,1782749441000,-1510.23,0.00021273,2]
[426696609,1782749441000,-208.85460117,0.00023886,2]
[426696649,1782749441000,-300.0,0.00024999,10]
[426696648,1782749441000,-300.0,0.00024999,10]
[426696656,1782749441000,-590.74623189,0.00025,2]
[426696654,1782749441000,-237.40283707,0.00025,2]
[426696650,1782749441000,-78308.56025333,0.00025,60]
[426696655,1782749441000,-619.83118614,0.00025,2]
[426696651,1782749441000,-631.41741655,0.00025,5]
[426696652,1782749441000,-462230.50662993,0.00025,2]
[426696653,1782749441000,-321.88279101,0.00025,2]
[426696657,1782749441000,-247.52482941,0.00025117,2]
[426696659,1782749441000,-332.04937026,0.00025117,2]
[426696660,1782749441000,-201.23323264,0.00025117,2]
[426696663,1782749441000,-388.44461774,0.00025118,2]
[426696669,1782749441000,-370.30110206,0.00025152,2]
[426696661,1782749441000,-364.332831,0.00025117,2]
[426696668,1782749441000,-162.54264022,0.00025152,2]
[426696658,1782749441000,-209.43339595,0.00025117,2]
[426696665,1782749441000,-303.67398539,0.00025152,2]
[426696662,1782749441000,-190.74474334,0.00025117,2]
[426696667,1782749441000,-210.6751153,0.00025152,2]
[426696664,1782749441000,-360.91562248,0.00025152,2]
[426696666,1782749441000,-313.41467648,0.00025152,2]
[426696671,1782749441000,-368.28692831,0.00025152,2]
[426696670,1782749441000,-162.45384647,0.00025152,2]
[426696673,1782749441000,-417.70920235,0.00025152,2]
[426696674,1782749441000,-323.40109437,0.00025152,2]
[426696607,1782749441000,-185.15055103,0.00023886,2]
[426696645,1782749441000,-177.38,0.00024658,2]
[426696646,1782749441000,-500.0,0.00024733,2]
[426696672,1782749441000,-189.9079351,0.00025152,2]
[426696647,1782749441000,-151.09934801,0.00024967,2]
[426696644,1782749441000,-1000.0,0.00024658,2]
[426696611,1782749441000,-172.82097894,0.00023886,2]
[426696618,1782749441000,-195.6857772,0.00023892,2]
[426696627,1782749441000,-225.0,0.00024,2]
[426696625,1782749441000,-151.72064234,0.00023893,2]
[426696621,1782749441000,-173.51699218,0.00023892,2]
[426696628,1782749441000,-611.0,0.00024,2]
[426696629,1782749441000,-588.0,0.00024,2]
[426696624,1782749441000,-169.76875029,0.00023893,2]
[426696626,1782749441000,-320.0,0.00024,2]
[426696619,1782749441000,-204.36415393,0.00023892,2]
[426696622,1782749441000,-194.21322409,0.00023892,2]
[426696623,1782749441000,-169.83460193,0.00023892,2]
[426696620,1782749441000,-193.40686093,0.00023892,2]
[426696614,1782749441000,-159.30627945,0.00023886,2]
[426696632,1782749441000,-152.0,0.00024057,3]
[426696630,1782749441000,-860.0,0.00024,7]
[426696640,1782749441000,-273.33010035,0.0002443,2]
[426696637,1782749441000,-216.58458871,0.0002414,7]
[426696636,1782749441000,-5473.0269,0.00024134,7]
[426696638,1782749441000,-150.0,0.00024164,2]
[426696639,1782749441000,-151.0,0.00024171,7]
[426696641,1782749441000,-502.0,0.00024522,8]
[426696635,1782749441000,-4044.99973307,0.00024134,7]
[426696633,1782749441000,-1532.76827674,0.00024134,7]
[426696634,1782749441000,-2703.98492499,0.00024134,7]
[426696631,1782749441000,-174.52,0.00024027,2]
[426696643,1782749441000,-177.33,0.00024658,2]
[426696642,1782749441000,-167.33383345,0.00024579,2]
[426696718,1782749442000,-151.0,0.000258,2]
[426696721,1782749442000,-151.0,0.000258,2]
[426696713,1782749442000,-151.0,0.000258,2]
[426696712,1782749442000,-2094915.58515693,0.000258,2]
[426696706,1782749442000,-437.37,0.000256,7]
[426696709,1782749442000,-151.0,0.00025797,7]
[426696701,1782749442000,-303.44128469,0.00025159,2]
[426696699,1782749442000,-246.82103868,0.00025159,2]
[426696716,1782749442000,-152.447166,0.000258,2]
[426696698,1782749442000,-242.48342351,0.00025159,2]
[426696711,1782749442000,-300.0,0.00025799,10]
[426696702,1782749442000,-151.09934801,0.00025287,2]
[426696717,1782749442000,-151.0,0.000258,2]
[426696720,1782749442000,-151.0,0.000258,2]
[426696715,1782749442000,-151.0,0.000258,2]
[426696714,1782749442000,-151.0,0.000258,2]
[426696719,1782749442000,-151.0,0.000258,2]
[426696723,1782749442000,-151.0,0.000258,2]
[426696733,1782749442000,-234.99271112,0.00025961,2]
[426696734,1782749442000,-381.48948668,0.00025961,2]
[426696735,1782749442000,-270.81230653,0.00025961,2]
[426696722,1782749442000,-151.0,0.000258,2]
[426696725,1782749442000,-280.9090909,0.00025899,2]
[426696704,1782749442000,-1000.0,0.00025386,2]
[426696724,1782749442000,-151.0,0.000258,2]
[426696710,1782749442000,-300.0,0.00025799,10]
[426696700,1782749442000,-165.26168974,0.00025159,2]
[426696688,1782749442000,-408.72830786,0.00025159,2]
[426696705,1782749442000,-502.0,0.00025463,9]
[426696727,1782749442000,-495.04965882,0.00025961,2]
[426696682,1782749442000,-194.79095712,0.00025159,2]
[426696681,1782749442000,-226.38447092,0.00025159,2]
[426696675,1782749442000,-213.59055005,0.00025152,2]
[426696676,1782749442000,-345.64195787,0.00025152,2]
[426696677,1782749442000,-324.14570979,0.00025152,2]
[426696678,1782749442000,-325.03352495,0.00025152,2]
[426696680,1782749442000,-303.16678477,0.00025159,2]
[426696679,1782749442000,-318.6125589,0.00025152,2]
[426696683,1782749442000,-151.34651757,0.00025159,2]
[426696685,1782749442000,-371.7665663,0.00025159,2]
[426696686,1782749442000,-185.03447973,0.00025159,2]
[426696687,1782749442000,-391.37155439,0.00025159,2]
[426696695,1782749442000,-182.320066,0.00025159,2]
[426696694,1782749442000,-241.35169487,0.00025159,2]
[426696684,1782749442000,-308.82882049,0.00025159,2]
[426696693,1782749442000,-388.42644818,0.00025159,2]
[426696690,1782749442000,-347.03398436,0.00025159,2]
[426696691,1782749442000,-210.47130829,0.00025159,2]
[426696689,1782749442000,-386.81372187,0.00025159,2]
[426696692,1782749442000,-235.31189383,0.00025159,2]
[426696697,1782749442000,-339.53750057,0.00025159,2]
[426696696,1782749442000,-339.66920386,0.00025159,2]
[426696708,1782749442000,-151.0,0.00025797,7]
[426696707,1782749442000,-151.09934801,0.00025607,2]
[426696703,1782749442000,-150.0,0.00025373,2]
[426696726,1782749442000,-151.09934801,0.00025927,2]
[426696729,1782749442000,-498.0740554,0.00025961,2]
[426696793,1782749442000,-557.64984945,0.00026003,2]
[426696770,1782749442000,-9533.36905003,0.00026,5]
[426696772,1782749442000,-454.75017715,0.00026003,2]
[426696771,1782749442000,-1359.68325,0.00026,2]
[426696762,1782749442000,-158.68630664,0.00025996,2]
[426696769,1782749442000,-4617.9892356,0.00026,2]
[426696765,1782749442000,-487.55028743,0.00025996,2]
[426696773,1782749442000,-452.76894183,0.00026003,2]
[426696767,1782749442000,-477.91883834,0.00025996,2]
[426696790,1782749442000,-302.69303515,0.00026003,2]
[426696788,1782749442000,-389.58191423,0.00026003,2]
[426696792,1782749442000,-463.24323073,0.00026003,2]
[426696803,1782749442000,-482.70338975,0.00026003,2]
[426696794,1782749442000,-370.06895946,0.00026003,2]
[426696796,1782749442000,-205.9682589,0.00026003,2]
[426696795,1782749442000,-587.05733159,0.00026003,2]
[426696798,1782749442000,-580.2205828,0.00026003,2]
[426696797,1782749442000,-613.0924618,0.00026003,2]
[426696801,1782749442000,-470.62378765,0.00026003,2]
[426696802,1782749442000,-197.10731322,0.00026003,2]
[426696799,1782749442000,-520.55097654,0.00026003,2]
[426696800,1782749442000,-420.94261659,0.00026003,2]
[426696804,1782749442000,-292.77033918,0.00026003,2]
[426696806,1782749442000,-509.50380579,0.00026003,2]
[426696731,1782749442000,-546.4992465,0.00025961,2]
[426696805,1782749442000,-364.64013201,0.00026003,2]
[426696758,1782749442000,-219.14766197,0.00025996,2]
[426696754,1782749442000,-222.03500896,0.00025996,2]
[426696764,1782749442000,-486.21856468,0.00025996,2]
[426696755,1782749442000,-427.1811001,0.00025996,2]
[426696732,1782749442000,-198.21162737,0.00025961,2]
[426696728,1782749442000,-418.86679189,0.00025961,2]
[426696730,1782749442000,-402.46646527,0.00025961,2]
[426696736,1782749442000,-582.6669266,0.00025962,2]
[426696739,1782749442000,-541.37343372,0.00025996,2]
[426696738,1782749442000,-227.30674088,0.00025996,2]
[426696742,1782749442000,-470.12201472,0.00025996,2]
[426696741,1782749442000,-254.26271187,0.00025996,2]
[426696757,1782749442000,-173.43850597,0.00025996,2]
[426696748,1782749442000,-552.43039246,0.00025996,2]
[426696746,1782749442000,-555.45165308,0.00025996,2]
[426696737,1782749442000,-266.91777753,0.00025996,2]
[426696747,1782749442000,-324.90769293,0.00025996,2]
[426696740,1782749442000,-455.51097809,0.00025996,2]
[426696743,1782749442000,-421.3502306,0.00025996,2]
[426696756,1782749442000,-155.49693022,0.00025996,2]
[426696744,1782749442000,-155.01442013,0.00025996,2]
[426696760,1782749442000,-562.17661039,0.00025996,2]
[426696753,1782749442000,-209.17099653,0.00025996,2]
[426696752,1782749442000,-485.10164155,0.00025996,2]
[426696761,1782749442000,-156.19253169,0.00025996,2]
[426696759,1782749442000,-518.46293681,0.00025996,2]
[426696750,1782749442000,-200.40032403,0.00025996,2]
[426696749,1782749442000,-379.81587021,0.00025996,2]
[426696745,1782749442000,-325.08528044,0.00025996,2]
[426696751,1782749442000,-626.56380352,0.00025996,2]
[426696851,1782749443000,-835.41840469,0.00026559,2]
[426696846,1782749443000,-487.3615394,0.00026559,2]
[426696845,1782749443000,-284.04385911,0.00026559,2]
[426696844,1782749443000,-740.60220411,0.00026559,2]
[426696843,1782749443000,-487.62792066,0.00026559,2]
[426696842,1782749443000,-208.93299555,0.00026559,2]
[426696852,1782749443000,-270.68337984,0.00026559,2]
[426696836,1782749443000,-508.52542373,0.00026559,2]
[426696838,1782749443000,-632.0253459,0.00026559,2]
[426696832,1782749443000,-300.0,0.00026558,10]
[426696848,1782749443000,-342.91394514,0.00026559,2]
[426696841,1782749443000,-178.93603588,0.00026559,2]
[426696850,1782749443000,-400.80064806,0.00026559,2]
[426696862,1782749443000,-310.99386043,0.00026559,2]
[426696849,1782749443000,-569.72380531,0.00026559,2]
[426696857,1782749443000,-202.1636313,0.00026559,2]
[426696853,1782749443000,-646.80218874,0.00026559,2]
[426696855,1782749443000,-418.34199306,0.00026559,2]
[426696864,1782749443000,-353.66898749,0.00026559,2]
[426696856,1782749443000,-287.75639426,0.00026559,2]
[426696859,1782749443000,-339.5826762,0.00026559,2]
[426696858,1782749443000,-229.80872473,0.00026559,2]
[426696854,1782749443000,-208.036199,0.00026559,2]
[426696860,1782749443000,-444.07001792,0.00026559,2]
[426696861,1782749443000,-640.77165015,0.00026559,2]
[426696831,1782749443000,-776.88923547,0.00026524,2]
[426696847,1782749443000,-736.57385661,0.00026559,2]
[426696834,1782749443000,-721.83124496,0.00026559,2]
[426696807,1782749443000,-509.30625086,0.00026004,2]
[426696840,1782749443000,-310.02884026,0.00026559,2]
[426696810,1782749443000,-152.0,0.00026204,4]
[426696809,1782749443000,-582.63967227,0.00026004,2]
[426696811,1782749443000,-151.09934801,0.00026247,2]
[426696808,1782749443000,-493.64207737,0.00026004,2]
[426696812,1782749443000,-150.0,0.00026267,5]
[426696815,1782749443000,-502.0,0.00026403,10]
[426696813,1782749443000,-300.0,0.00026399,10]
[426696814,1782749443000,-28075.92807695,0.000264,2]
[426696817,1782749443000,-426.00662091,0.00026523,2]
[426696827,1782749443000,-319.96830724,0.00026523,2]
[426696826,1782749443000,-164.36863685,0.00026523,2]
[426696816,1782749443000,-179.00284132,0.00026523,2]
[426696833,1782749443000,-454.61348176,0.00026559,2]
[426696825,1782749443000,-469.98542223,0.00026523,2]
[426696820,1782749443000,-628.30018784,0.00026523,2]
[426696819,1782749443000,-742.57448823,0.00026523,2]
[426696822,1782749443000,-603.69969791,0.00026523,2]
[426696821,1782749443000,-664.09874053,0.00026523,2]
[426696824,1782749443000,-396.42325473,0.00026523,2]
[426696823,1782749443000,-728.665662,0.00026523,2]
[426696828,1782749443000,-572.23423002,0.00026523,2]
[426696830,1782749443000,-165.81969986,0.00026524,2]
[426696829,1782749443000,-541.62461306,0.00026523,2]
[426696837,1782749443000,-626.82935296,0.00026559,2]
[426696839,1782749443000,-185.53824093,0.00026559,2]
[426696835,1782749443000,-607.34797078,0.00026559,2]
[426696818,1782749443000,-174.19192964,0.00026523,2]
[426696863,1782749443000,-346.87701195,0.00026559,2]
[426696917,1782749443000,-151.0,0.000268,2]
[426696868,1782749443000,-281.08830519,0.00026559,2]